[Event "106th British-ch Major 2019"]
[Site "Torquay"]
[Date "2019.08.01"]
[Round "6.23"]
[White "Howell, Oliver W"]
[Black "Cocks, Elliot"]
[Result "0-1"]
[ECO "A25"]
[WhiteElo "1797"]
[BlackElo "1907"]
[Annotator "NA"]
[PlyCount "60"]
[EventDate "2019.07.27"]
[EventType "swiss"]
[EventCountry "GBR"]
[SourceTitle "playchess.com"]
[Source "ChessBase"]
[SourceQuality "1"]
[TimeControl "40/5400+30:1800+30"]

1. Nf3 {[%emt 0:00:00]} g6 {[%emt 0:00:10]} 2. c4 {[%emt 0:00:00]} Bg7 {[%emt 0:00:11]} 3. g3 {[%emt 0:00:09]} e5 {[%emt 0:00:59]} 4. Nc3 {[%emt 0:01:26]} Nc6 {[%emt 0:00:08]} 5. Bg2 {[%emt 0:00:39]} d6 {[%emt 0:00:12]} 6. O-O {[%emt 0:01:10]} Nge7 {[%emt 0:00:09]} 7. a3 {[%emt 0:09:52]} Be6 {[%emt 0:02:01]} 8. d3 {[%emt 0:06:16]} h6 {[%emt 0:00:57]} 9. Qc2 {[%emt 0:01:36]} O-O {[%emt 0:01:34]} 10. Rb1 {[%emt 0:01:23]} Qd7 {[%emt 0:03:59]} 11. b4 {[%emt 0:04:57]} a6 {[%emt 0:02:18]} 12. a4 {[%emt 0:02:03]} a5 {[%emt 0:04:56]} 13. b5 {[%emt 0:12:13]} Nb4 {[%emt 0:02:17]} 14. Qd2 {[%emt 0:00:51]} c5 {[%emt 0:03:20]} 15. bxc6 {[%emt 0:14:26]} bxc6 {[%emt 0:01:50]} 16. Ne1 {[%emt 0:03:21]} d5 {[%emt 0:07:58]} 17. cxd5 {[%emt 0:04:30]} cxd5 {[%emt 0:01:04]} 18. Ba3 {[%emt 0:01:51]} Nec6 {[%emt 0:20:57]} 19. Nc2 {[%emt 0:04:34]} Rfb8 {[%emt 0:01:50]} 20. Nb5 {[%emt 0:02:31]} Bf8 {[%emt 0:02:55]} 21. Na1 {[%emt 0:05:24]} Na7 {[%emt 0:11:19]} 22. Nxa7 {[%emt 0:04:34]} Rxa7 {[%emt 0:01:39]} 23. Rfc1 {[%emt 0:00:59]} Qxa4 {[%emt 0:02:33]} 24. Qe3 {[%emt 0:04:46]} Rab7 {[%emt 0:04:34]} 25. Bxb4 {[%emt 0:02:02]} Rxb4 {[%emt 0:04:34]} 26. Rxb4 {[%emt 0:01:04]} axb4 {[%emt 0:01:38]} 27. Qxe5 {[%emt 0:02:05]} Rc8 {[%emt 0:03:04]} 28. Qb2 {[%emt 0:04:22]} Rxc1+ {[%emt 0:01:23]} 29. Qxc1 {[%emt 0:00:07]} b3 {[%emt 0:02:25]} 30. d4 {[%emt 0:01:11]} b2 {[%emt 0:00:43]} 0-1

[Event "106th British-ch Major 2019"]
[Site "Torquay"]
[Date "2019.08.01"]
[Round "6.24"]
[White "Gray, Edward"]
[Black "Young, Daniel J"]
[Result "1/2-1/2"]
[ECO "B23"]
[WhiteElo "1757"]
[BlackElo "1971"]
[Annotator "NA"]
[PlyCount "66"]
[EventDate "2019.07.27"]
[EventType "swiss"]
[EventCountry "GBR"]
[SourceTitle "playchess.com"]
[Source "ChessBase"]
[SourceQuality "1"]
[TimeControl "40/5400+30:1800+30"]

1. e4 {[%emt 0:00:00]} c5 {[%emt 0:00:00]} 2. Nc3 {[%emt 0:00:01]} g6 {[%emt 0:00:00]} 3. f4 {[%emt 0:00:23]} Bg7 {[%emt 0:00:00]} 4. Nf3 {[%emt 0:00:09]} Nc6 {[%emt 0:00:03]} 5. Bb5 {[%emt 0:00:46]} Nd4 {[%emt 0:00:12]} 6. Bc4 {[%emt 0:00:23]} e6 {[%emt 0:01:42]} 7. O-O {[%emt 0:01:02]} Ne7 {[%emt 0:00:37]} 8. Nxd4 {[%emt 0:01:26]} cxd4 {[%emt 0:00:13]} 9. Ne2 {[%emt 0:00:15]} O-O {[%emt 0:00:38]} 10. d3 {[%emt 0:00:47]} d5 {[%emt 0:03:25]} 11. Bb3 {[%emt 0:00:26]} b6 {[%emt 0:01:15]} 12. Ng3 {[%emt 0:02:34]} a5 {[%emt 0:17:22]} 13. a3 {[%emt 0:00:57]} a4 {[%emt 0:00:15]} 14. Ba2 {[%emt 0:00:05]} Bd7 {[%emt 0:01:06]} 15. exd5 {[%emt 0:01:29]} exd5 {[%emt 0:01:38]} 16. Bd2 {[%emt 0:01:41]} Re8 {[%emt 0:04:07]} 17. Bb4 {[%emt 0:01:32]} Nf5 {[%emt 0:03:45]} 18. Nxf5 {[%emt 0:02:09]} Bxf5 {[%emt 0:02:08]} 19. Qf3 {[%emt 0:01:23]} Rc8 {[%emt 0:04:26]} 20. Rf2 {[%emt 0:01:34]} Be6 {[%emt 0:02:45]} 21. Re2 {[%emt 0:01:00]} Qd7 {[%emt 0:01:13]} 22. h3 {[%emt 0:02:01]} h5 {[%emt 0:05:23]} 23. Rae1 {[%emt 0:01:19]} Bf6 {[%emt 0:08:22]} 24. Kh2 {[%emt 0:09:25]} Kg7 {[%emt 0:04:45]} 25. f5 {[%emt 0:09:22]} Bxf5 {[%emt 0:01:36]} 26. Qxd5 {[%emt 0:02:27]} Qxd5 {[%emt 0:01:13]} 27. Bxd5 {[%emt 0:00:08]} Re3 {[%emt 0:03:24]} 28. Bd2 {[%emt 0:03:08]} Rxe2 {[%emt 0:02:33]} 29. Rxe2 {[%emt 0:00:06]} Rc5 {[%emt 0:06:20]} 30. Ba2 {[%emt 0:02:05]} Be5+ {[%emt 0:07:32]} 31. Kg1 {[%emt 0:00:59]} f6 {[%emt 0:06:59]} 32. Bb4 {[%emt 0:00:37]} Rc7 {[%emt 0:00:45]} 33. Bc4 {[%emt 0:00:39]} Kh6 {[%emt 0:05:20]} 1/2-1/2

[Event "106th British-ch Major 2019"]
[Site "Torquay"]
[Date "2019.08.01"]
[Round "6.25"]
[White "Chapman, Matt"]
[Black "Kirupakaran, Vishnu"]
[Result "1-0"]
[ECO "B90"]
[WhiteElo "1957"]
[BlackElo "1771"]
[Annotator "NA"]
[PlyCount "83"]
[EventDate "2019.07.27"]
[EventType "swiss"]
[EventCountry "GBR"]
[SourceTitle "playchess.com"]
[Source "ChessBase"]
[SourceQuality "1"]
[TimeControl "40/5400+30:1800+30"]

1. e4 {[%emt 0:00:00]} c5 {[%emt 0:00:00]} 2. Nf3 {[%emt 0:00:00]} d6 {[%emt 0:00:00]} 3. d4 {[%emt 0:00:00]} cxd4 {[%emt 0:00:00]} 4. Nxd4 {[%emt 0:00:00]} Nf6 {[%emt 0:00:00]} 5. Nc3 {[%emt 0:00:00]} a6 {[%emt 0:00:00]} 6. h3 {[%emt 0:00:27]} e5 {[%emt 0:00:11]} 7. Nde2 {[%emt 0:00:07]} h5 {[%emt 0:00:08]} 8. Bg5 {[%emt 0:00:33]} Be6 {[%emt 0:00:11]} 9. Bxf6 {[%emt 0:00:32]} Qxf6 {[%emt 0:00:09]} 10. Nd5 {[%emt 0:00:09]} Qd8 {[%emt 0:00:08]} 11. Nec3 {[%emt 0:00:10]} g6 {[%emt 0:01:00]} 12. Bc4 {[%emt 0:01:09]} Bh6 {[%emt 0:00:26]} 13. O-O {[%emt 0:01:30]} O-O {[%emt 0:00:09]} 14. Qd3 {[%emt 0:01:43]} Nc6 {[%emt 0:00:15]} 15. Bb3 {[%emt 0:04:38]} Rc8 {[%emt 0:01:05]} 16. Na4 {[%emt 0:09:06]} b5 {[%emt 0:43:07]} 17. Nac3 {[%emt 0:00:12]} Nd4 {[%emt 0:01:01]} 18. a4 {[%emt 0:06:54]} Rb8 {[%emt 0:03:08]} 19. axb5 {[%emt 0:03:54]} axb5 {[%emt 0:00:08]} 20. Ne2 {[%emt 0:02:53]} Nxb3 {[%emt 0:09:40]} 21. Qxb3 {[%emt 0:01:00]} Qg5 {[%emt 0:07:48]} 22. Rad1 {[%emt 0:07:13]} Rfc8 {[%emt 0:05:48]} 23. Kh1 {[%emt 0:06:57]} Qh4 {[%emt 0:03:18]} 24. Ng3 {[%emt 0:04:59]} Rc4 {[%emt 0:04:46]} 25. Qd3 {[%emt 0:00:50]} Kg7 {[%emt 0:10:36]} 26. c3 {[%emt 0:01:44]} f5 {[%emt 0:04:08]} 27. Ne3 {[%emt 0:02:31]} Bxe3 {[%emt 0:04:01]} 28. Qxe3 {[%emt 0:00:05]} Rd8 {[%emt 0:01:08]} 29. exf5 {[%emt 0:01:07]} gxf5 {[%emt 0:00:09]} 30. f4 {[%emt 0:00:44]} e4 {[%emt 0:01:51]} 31. Ne2 {[%emt 0:00:57]} b4 {[%emt 0:00:35]} 32. Nd4 {[%emt 0:02:25]} Bd7 {[%emt 0:00:22]} 33. cxb4 {[%emt 0:00:55]} Rb8 {[%emt 0:00:24]} 34. b5 {[%emt 0:01:29]} Qf6 {[%emt 0:00:46]} 35. b3 {[%emt 0:01:57]} Rc5 {[%emt 0:00:23]} 36. Ra1 {[%emt 0:03:04]} Bxb5 {[%emt 0:00:33]} 37. Ra7+ {[%emt 0:02:22]} Kh6 {[%emt 0:00:21]} 38. Rfa1 {[%emt 0:04:55]} Rd5 {[%emt 0:00:37]} 39. Nxb5 {[%emt 0:05:23]} Rd3 {[%emt 0:00:13]} 40. Qc1 {[%emt 0:05:20]} Rxb5 {[%emt 0:00:02]} 41. Qc7 {[%emt 0:30:53]} Qg6 {[%emt 0:02:35]} 42. Qd8 {[%emt 0:00:00]} 1-0

[Event "106th British-ch Major 2019"]
[Site "Torquay"]
[Date "2019.08.01"]
[Round "6.26"]
[White "Nayak, Raghav"]
[Black "Sanitt, Ethan"]
[Result "1-0"]
[ECO "A00"]
[WhiteElo "1906"]
[BlackElo "1752"]
[Annotator "NA"]
[PlyCount "75"]
[EventDate "2019.07.27"]
[EventType "swiss"]
[EventCountry "GBR"]
[SourceTitle "playchess.com"]
[Source "ChessBase"]
[SourceQuality "1"]
[TimeControl "40/5400+30:1800+30"]

1. a3 {[%emt 0:00:51]} Nf6 {[%emt 0:03:44]} 2. Nf3 {[%emt 0:00:28]} d5 {[%emt 0:03:58]} 3. g3 {[%emt 0:00:22]} c5 {[%emt 0:01:31]} 4. Bg2 {[%emt 0:00:18]} Nc6 {[%emt 0:00:40]} 5. O-O {[%emt 0:00:08]} e5 {[%emt 0:01:42]} 6. d3 {[%emt 0:00:07]} Be7 {[%emt 0:03:44]} 7. e4 {[%emt 0:01:10]} dxe4 {[%emt 0:04:45]} 8. dxe4 {[%emt 0:00:06]} Qxd1 {[%emt 0:00:20]} 9. Rxd1 {[%emt 0:00:02]} Bg4 {[%emt 0:00:40]} 10. Re1 {[%emt 0:01:10]} Rd8 {[%emt 0:11:13]} 11. Nbd2 {[%emt 0:06:57]} O-O {[%emt 0:09:56]} 12. c3 {[%emt 0:00:50]} Rd3 {[%emt 0:11:33]} 13. h3 {[%emt 0:02:36]} Bxf3 {[%emt 0:05:22]} 14. Nxf3 {[%emt 0:01:33]} c4 {[%emt 0:01:54]} 15. Be3 {[%emt 0:04:45]} Rd7 {[%emt 0:06:53]} 16. Bf1 {[%emt 0:16:06]} Nxe4 {[%emt 0:03:38]} 17. Bxc4 {[%emt 0:05:16]} Kh8 {[%emt 0:04:55]} 18. Bb5 {[%emt 0:21:10]} f6 {[%emt 0:06:36]} 19. Bxa7 {[%emt 0:00:55]} Nd2 {[%emt 0:01:09]} 20. Kg2 {[%emt 0:10:02]} Nxf3 {[%emt 0:01:44]} 21. Kxf3 {[%emt 0:00:20]} Rd2 {[%emt 0:01:48]} 22. Bxc6 {[%emt 0:00:26]} bxc6 {[%emt 0:00:10]} 23. Rab1 {[%emt 0:01:28]} h5 {[%emt 0:05:55]} 24. Be3 {[%emt 0:00:28]} Rd7 {[%emt 0:01:33]} 25. Red1 {[%emt 0:00:39]} Rb7 {[%emt 0:00:26]} 26. b4 {[%emt 0:02:38]} f5 {[%emt 0:00:16]} 27. a4 {[%emt 0:00:56]} f4 {[%emt 0:00:41]} 28. gxf4 {[%emt 0:00:46]} g5 {[%emt 0:01:23]} 29. a5 {[%emt 0:01:17]} gxf4 {[%emt 0:01:34]} 30. Bb6 {[%emt 0:00:28]} Bf6 {[%emt 0:02:00]} 31. Ke4 {[%emt 0:01:28]} Bg7 {[%emt 0:01:44]} 32. f3 {[%emt 0:00:40]} Kh7 {[%emt 0:01:34]} 33. Rd6 {[%emt 0:00:37]} Rc8 {[%emt 0:00:54]} 34. Rbd1 {[%emt 0:00:33]} Rf7 {[%emt 0:00:32]} 35. Rd8 {[%emt 0:00:31]} Rxd8 {[%emt 0:00:15]} 36. Rxd8 {[%emt 0:00:19]} Bf6 {[%emt 0:00:02]} 37. Rd6 {[%emt 0:00:42]} Kg6 {[%emt 0:00:30]} 38. Bd8 {[%emt 0:00:42]} 1-0

[Event "106th British-ch Major 2019"]
[Site "Torquay"]
[Date "2019.08.01"]
[Round "6.27"]
[White "Paulden, Tim"]
[Black "Rushbrooke, Tibo"]
[Result "0-1"]
[ECO "A01"]
[WhiteElo "1902"]
[BlackElo "1700"]
[Annotator "NA"]
[PlyCount "88"]
[EventDate "2019.07.27"]
[EventType "swiss"]
[EventCountry "GBR"]
[SourceTitle "playchess.com"]
[Source "ChessBase"]
[SourceQuality "1"]
[TimeControl "40/5400+30:1800+30"]

1. b3 {[%emt 0:00:00]} e5 {[%emt 0:00:45]} 2. Bb2 {[%emt 0:00:00]} Nc6 {[%emt 0:00:23]} 3. e3 {[%emt 0:00:19]} d6 {[%emt 0:01:01]} 4. c4 {[%emt 0:10:19]} g6 {[%emt 0:05:49]} 5. Ne2 {[%emt 0:09:56]} Bg7 {[%emt 0:01:08]} 6. d4 {[%emt 0:04:21]} f5 {[%emt 0:05:07]} 7. g3 {[%emt 0:06:29]} Nf6 {[%emt 0:04:59]} 8. Bg2 {[%emt 0:04:09]} O-O {[%emt 0:00:39]} 9. a3 {[%emt 0:08:38]} Qe8 {[%emt 0:07:23]} 10. d5 {[%emt 0:02:11]} Nd8 {[%emt 0:01:20]} 11. Nbc3 {[%emt 0:02:14]} Nf7 {[%emt 0:04:49]} 12. Qc2 {[%emt 0:02:48]} e4 {[%emt 0:01:28]} 13. Nb5 {[%emt 0:02:57]} Qe7 {[%emt 0:04:11]} 14. h4 {[%emt 0:03:23]} a6 {[%emt 0:03:13]} 15. Nbd4 {[%emt 0:00:31]} Ne5 {[%emt 0:01:28]} 16. Nf4 {[%emt 0:00:25]} Nfg4 {[%emt 0:10:51]} 17. O-O-O {[%emt 0:03:41]} c5 {[%emt 0:04:09]} 18. Nde6 {[%emt 0:11:30]} Bxe6 {[%emt 0:03:04]} 19. dxe6 {[%emt 0:00:28]} Rab8 {[%emt 0:03:55]} 20. Rd5 {[%emt 0:08:28]} b5 {[%emt 0:03:41]} 21. cxb5 {[%emt 0:05:58]} axb5 {[%emt 0:00:09]} 22. Rhd1 {[%emt 0:01:40]} c4 {[%emt 0:02:51]} 23. Bf1 {[%emt 0:04:37]} Nd3+ {[%emt 0:03:45]} 24. Bxd3 {[%emt 0:01:30]} cxd3 {[%emt 0:00:10]} 25. Qd2 {[%emt 0:00:25]} Rfc8+ {[%emt 0:00:32]} 26. Kb1 {[%emt 0:00:48]} Rc2 {[%emt 0:00:17]} 27. Qxc2 {[%emt 0:03:38]} dxc2+ {[%emt 0:00:07]} 28. Kxc2 {[%emt 0:00:03]} Bxb2 {[%emt 0:01:25]} 29. Kxb2 {[%emt 0:00:05]} Nxf2 {[%emt 0:01:29]} 30. R1d2 {[%emt 0:00:43]} Nd3+ {[%emt 0:00:14]} 31. Nxd3 {[%emt 0:00:16]} exd3 {[%emt 0:00:05]} 32. R2xd3 {[%emt 0:00:02]} Qxe6 {[%emt 0:00:26]} 33. Rxd6 {[%emt 0:00:06]} Qe5+ {[%emt 0:00:58]} 34. R6d4 {[%emt 0:01:16]} Rd8 {[%emt 0:01:00]} 35. Kc3 {[%emt 0:00:24]} Rc8+ {[%emt 0:02:28]} 36. Kd2 {[%emt 0:00:14]} Qxg3 {[%emt 0:00:10]} 37. Rd8+ {[%emt 0:01:06]} Rxd8 {[%emt 0:00:07]} 38. Rxd8+ {[%emt 0:00:04]} Kg7 {[%emt 0:00:09]} 39. Rd4 {[%emt 0:00:07]} h6 {[%emt 0:01:45]} 40. a4 {[%emt 0:00:08]} bxa4 {[%emt 0:01:59]} 41. bxa4 {[%emt 0:31:10]} g5 {[%emt 0:32:43]} 42. hxg5 {[%emt 0:00:19]} hxg5 {[%emt 0:00:07]} 43. a5 {[%emt 0:00:23]} Qe5 {[%emt 0:01:10]} 44. Ra4 {[%emt 0:01:38]} Qb5 {[%emt 0:00:09]} 0-1

[Event "106th British-ch Major 2019"]
[Site "Torquay"]
[Date "2019.08.01"]
[Round "6.28"]
[White "Camp, Imogen Al"]
[Black "Hilton, Tim"]
[Result "1-0"]
[ECO "A84"]
[WhiteElo "1850"]
[BlackElo "1892"]
[Annotator "NA"]
[PlyCount "87"]
[EventDate "2019.07.27"]
[EventType "swiss"]
[EventCountry "GBR"]
[SourceTitle "playchess.com"]
[Source "ChessBase"]
[SourceQuality "1"]
[TimeControl "40/5400+30:1800+30"]

1. d4 {[%emt 0:00:00]} e6 {[%emt 0:05:23]} 2. Nf3 {[%emt 0:00:00]} f5 {[%emt 0:00:07]} 3. Bf4 {[%emt 0:00:21]} Nf6 {[%emt 0:00:13]} 4. c4 {[%emt 0:00:26]} b6 {[%emt 0:00:18]} 5. e3 {[%emt 0:00:56]} Bb7 {[%emt 0:00:09]} 6. Bd3 {[%emt 0:00:42]} d6 {[%emt 0:01:11]} 7. Nc3 {[%emt 0:01:21]} Nbd7 {[%emt 0:01:22]} 8. Qc2 {[%emt 0:02:22]} Nh5 {[%emt 0:04:55]} 9. Bg5 {[%emt 0:05:15]} Be7 {[%emt 0:00:50]} 10. Bxe7 {[%emt 0:00:09]} Qxe7 {[%emt 0:00:03]} 11. d5 {[%emt 0:02:46]} Nc5 {[%emt 0:03:24]} 12. Be2 {[%emt 0:02:11]} exd5 {[%emt 0:05:15]} 13. Nxd5 {[%emt 0:12:50]} Bxd5 {[%emt 0:01:37]} 14. cxd5 {[%emt 0:00:05]} Qe4 {[%emt 0:05:12]} 15. Bb5+ {[%emt 0:05:51]} Ke7 {[%emt 0:03:14]} 16. Qd2 {[%emt 0:02:31]} a6 {[%emt 0:07:48]} 17. Bc6 {[%emt 0:01:45]} Nd3+ {[%emt 0:01:29]} 18. Kf1 {[%emt 0:02:29]} Nb4 {[%emt 0:08:41]} 19. Bxa8 {[%emt 0:04:42]} Rxa8 {[%emt 0:00:42]} 20. Ng5 {[%emt 0:03:37]} Qc4+ {[%emt 0:00:11]} 21. Qe2 {[%emt 0:00:30]} Qxe2+ {[%emt 0:02:50]} 22. Kxe2 {[%emt 0:00:06]} h6 {[%emt 0:00:07]} 23. Nf3 {[%emt 0:01:08]} Nxd5 {[%emt 0:00:30]} 24. Rhd1 {[%emt 0:02:26]} Nhf6 {[%emt 0:03:16]} 25. Nd4 {[%emt 0:01:19]} g6 {[%emt 0:00:18]} 26. Nc6+ {[%emt 0:01:52]} Kd7 {[%emt 0:01:10]} 27. Rac1 {[%emt 0:01:01]} Re8 {[%emt 0:00:59]} 28. Kf1 {[%emt 0:02:04]} a5 {[%emt 0:01:21]} 29. Nd4 {[%emt 0:01:51]} f4 {[%emt 0:03:00]} 30. exf4 {[%emt 0:03:28]} Nxf4 {[%emt 0:00:06]} 31. Nb5 {[%emt 0:01:21]} N4d5 {[%emt 0:02:59]} 32. Rd2 {[%emt 0:02:47]} Re4 {[%emt 0:03:31]} 33. Rcd1 {[%emt 0:07:29]} Re5 {[%emt 0:02:22]} 34. Nd4 {[%emt 0:03:45]} Ne4 {[%emt 0:01:39]} 35. Re2 {[%emt 0:03:48]} Nf4 {[%emt 0:02:32]} 36. Re3 {[%emt 0:00:54]} Nd5 {[%emt 0:01:06]} 37. Rh3 {[%emt 0:02:43]} h5 {[%emt 0:01:02]} 38. a3 {[%emt 0:07:36]} Ng5 {[%emt 0:02:45]} 39. Rg3 {[%emt 0:02:11]} h4 {[%emt 0:04:28]} 40. Rg4 {[%emt 0:02:54]} c5 {[%emt 0:03:07]} 41. Ne2 {[%emt 0:36:32]} Rf5 {[%emt 0:31:43]} 42. Kg1 {[%emt 0:01:45]} Re5 {[%emt 0:02:59]} 43. Nc1 {[%emt 0:00:00]} h3 {[%emt 0:00:00]} 44. f4 {[%emt 0:00:00]} 1-0

[Event "106th British-ch Major 2019"]
[Site "Torquay"]
[Date "2019.08.01"]
[Round "6.29"]
[White "Miller, George I"]
[Black "Robertson, Jim"]
[Result "0-1"]
[ECO "B13"]
[WhiteElo "1891"]
[BlackElo "1580"]
[Annotator "NA"]
[PlyCount "122"]
[EventDate "2019.07.27"]
[EventType "swiss"]
[EventCountry "GBR"]
[SourceTitle "playchess.com"]
[Source "ChessBase"]
[SourceQuality "1"]
[TimeControl "40/5400+30:1800+30"]

1. e4 {[%emt 0:01:00]} c6 {[%emt 0:00:00]} 2. d4 {[%emt 0:00:06]} d5 {[%emt 0:00:00]} 3. exd5 {[%emt 0:00:04]} cxd5 {[%emt 0:00:00]} 4. Bd3 {[%emt 0:00:01]} Nc6 {[%emt 0:00:16]} 5. c3 {[%emt 0:00:15]} Qc7 {[%emt 0:00:30]} 6. h3 {[%emt 0:00:39]} e6 {[%emt 0:01:17]} 7. Nf3 {[%emt 0:01:58]} Bd6 {[%emt 0:00:18]} 8. O-O {[%emt 0:00:23]} Nf6 {[%emt 0:00:55]} 9. Re1 {[%emt 0:00:25]} O-O {[%emt 0:00:56]} 10. Bg5 {[%emt 0:00:29]} Nd7 {[%emt 0:10:53]} 11. Qc2 {[%emt 0:03:50]} g6 {[%emt 0:05:20]} 12. Nbd2 {[%emt 0:05:21]} e5 {[%emt 0:06:31]} 13. dxe5 {[%emt 0:02:55]} Ndxe5 {[%emt 0:00:18]} 14. Bf6 {[%emt 0:05:43]} Nxd3 {[%emt 0:11:20]} 15. Qxd3 {[%emt 0:00:12]} Be6 {[%emt 0:00:24]} 16. Nb3 {[%emt 0:03:58]} Qd7 {[%emt 0:04:44]} 17. Qe3 {[%emt 0:04:32]} Rfe8 {[%emt 0:01:41]} 18. Qh6 {[%emt 0:00:14]} Bf8 {[%emt 0:00:13]} 19. Qh4 {[%emt 0:00:12]} Bg7 {[%emt 0:11:38]} 20. Bg5 {[%emt 0:09:25]} Bf8 {[%emt 0:03:59]} 21. Rad1 {[%emt 0:03:21]} Be7 {[%emt 0:00:33]} 22. Nbd4 {[%emt 0:01:13]} Nxd4 {[%emt 0:06:25]} 23. Rxd4 {[%emt 0:02:33]} Qd8 {[%emt 0:06:23]} 24. a3 {[%emt 0:12:22]} Rc8 {[%emt 0:00:48]} 25. Bxe7 {[%emt 0:01:08]} Rxe7 {[%emt 0:01:15]} 26. Ng5 {[%emt 0:12:11]} h5 {[%emt 0:01:14]} 27. Qg3 {[%emt 0:04:47]} Qc7 {[%emt 0:04:48]} 28. Rf4 {[%emt 0:04:48]} Bf5 {[%emt 0:02:48]} 29. Rd1 {[%emt 0:02:14]} Qd6 {[%emt 0:01:49]} 30. Qh4 {[%emt 0:04:36]} Rce8 {[%emt 0:01:03]} 31. Nf3 {[%emt 0:05:58]} Re4 {[%emt 0:00:42]} 32. Rxe4 {[%emt 0:00:24]} Rxe4 {[%emt 0:00:12]} 33. Qg5 {[%emt 0:00:34]} Kg7 {[%emt 0:04:05]} 34. Qd2 {[%emt 0:04:49]} Be6 {[%emt 0:00:39]} 35. Ng5 {[%emt 0:01:00]} Re5 {[%emt 0:01:53]} 36. Qd4 {[%emt 0:01:00]} Kg8 {[%emt 0:02:42]} 37. Ne4 {[%emt 0:01:21]} Qc7 {[%emt 0:06:08]} 38. Ng3 {[%emt 0:01:20]} Bd7 {[%emt 0:02:43]} 39. Qxa7 {[%emt 0:00:25]} Bc6 {[%emt 0:00:17]} 40. Qd4 {[%emt 0:00:25]} Qe7 {[%emt 0:00:36]} 41. f4 {[%emt 0:02:12]} Re3 {[%emt 0:01:47]} 42. Rd3 {[%emt 0:03:11]} Re1+ {[%emt 0:01:10]} 43. Kh2 {[%emt 0:00:13]} h4 {[%emt 0:01:02]} 44. Nh1 {[%emt 0:02:17]} Re4 {[%emt 0:01:02]} 45. Qf2 {[%emt 0:03:24]} Re2 {[%emt 0:01:31]} 46. Qd4 {[%emt 0:00:55]} Qe4 {[%emt 0:02:40]} 47. Qxe4 {[%emt 0:01:42]} dxe4 {[%emt 0:01:07]} 48. Rd8+ {[%emt 0:00:13]} Kg7 {[%emt 0:00:07]} 49. Kg1 {[%emt 0:00:15]} e3 {[%emt 0:01:43]} 50. Rd3 {[%emt 0:04:41]} Be4 {[%emt 0:05:35]} 51. Rd4 {[%emt 0:00:27]} Bc2 {[%emt 0:03:46]} 52. Kf1 {[%emt 0:00:17]} Rd2 {[%emt 0:01:25]} 53. b4 {[%emt 0:02:22]} Rxd4 {[%emt 0:07:08]} 54. cxd4 {[%emt 0:00:25]} Bd3+ {[%emt 0:00:06]} 55. Ke1 {[%emt 0:00:17]} b5 {[%emt 0:01:04]} 56. g3 {[%emt 0:00:10]} Be4 {[%emt 0:00:17]} 57. gxh4 {[%emt 0:01:47]} Bxh1 {[%emt 0:00:00]} 58. Ke2 {[%emt 0:00:04]} Kf6 {[%emt 0:01:17]} 59. Kxe3 {[%emt 0:00:05]} Kf5 {[%emt 0:00:19]} 60. h5 {[%emt 0:00:42]} gxh5 {[%emt 0:00:21]} 61. Kd3 {[%emt 0:00:47]} Kxf4 {[%emt 0:00:17]} 0-1

[Event "106th British-ch Major 2019"]
[Site "Torquay"]
[Date "2019.08.01"]
[Round "6.30"]
[White "Wilson, Matthew R"]
[Black "Whitehead, Mark A"]
[Result "1/2-1/2"]
[ECO "B50"]
[WhiteElo "1817"]
[BlackElo "1887"]
[Annotator "NA"]
[PlyCount "81"]
[EventDate "2019.07.27"]
[EventType "swiss"]
[EventCountry "GBR"]
[SourceTitle "playchess.com"]
[Source "ChessBase"]
[SourceQuality "1"]
[TimeControl "40/5400+30:1800+30"]

1. e4 {[%emt 0:00:00]} c5 {[%emt 0:00:00]} 2. Nf3 {[%emt 0:00:00]} e6 {[%emt 0:00:08]} 3. b3 {[%emt 0:00:00]} d6 {[%emt 0:00:44]} 4. Bb2 {[%emt 0:00:37]} Nf6 {[%emt 0:00:59]} 5. e5 {[%emt 0:02:13]} dxe5 {[%emt 0:01:22]} 6. Nxe5 {[%emt 0:02:30]} Nbd7 {[%emt 0:09:10]} 7. Qe2 {[%emt 0:19:18]} Be7 {[%emt 0:10:42]} 8. d3 {[%emt 0:00:59]} O-O {[%emt 0:01:30]} 9. Nd2 {[%emt 0:00:38]} Nxe5 {[%emt 0:03:57]} 10. Qxe5 {[%emt 0:03:55]} Ne8 {[%emt 0:05:39]} 11. O-O-O {[%emt 0:06:52]} b6 {[%emt 0:06:17]} 12. d4 {[%emt 0:14:54]} Qc7 {[%emt 0:07:51]} 13. Bd3 {[%emt 0:15:33]} Bb7 {[%emt 0:08:01]} 14. dxc5 {[%emt 0:08:21]} Qxe5 {[%emt 0:05:16]} 15. Bxe5 {[%emt 0:00:05]} Bxc5 {[%emt 0:00:09]} 16. Be4 {[%emt 0:01:53]} Bxe4 {[%emt 0:00:41]} 17. Nxe4 {[%emt 0:00:02]} Ba3+ {[%emt 0:00:19]} 18. Bb2 {[%emt 0:01:49]} Bxb2+ {[%emt 0:03:24]} 19. Kxb2 {[%emt 0:00:01]} h6 {[%emt 0:02:25]} 20. Rhe1 {[%emt 0:06:49]} Rc8 {[%emt 0:03:17]} 21. Rd7 {[%emt 0:01:07]} Rc7 {[%emt 0:00:20]} 22. Red1 {[%emt 0:07:30]} f5 {[%emt 0:01:31]} 23. Nc3 {[%emt 0:02:24]} Rf7 {[%emt 0:05:28]} 24. Rd8 {[%emt 0:00:42]} Rce7 {[%emt 0:00:14]} 25. Ra8 {[%emt 0:00:46]} Kh7 {[%emt 0:00:35]} 26. Nb5 {[%emt 0:01:37]} Nc7 {[%emt 0:02:00]} 27. Nxc7 {[%emt 0:00:01]} Rxc7 {[%emt 0:00:16]} 28. Re8 {[%emt 0:00:42]} Rfe7 {[%emt 0:00:17]} 29. Rdd8 {[%emt 0:01:18]} Kg6 {[%emt 0:01:14]} 30. f4 {[%emt 0:00:43]} Rxe8 {[%emt 0:00:24]} 31. Rxe8 {[%emt 0:00:02]} Kf7 {[%emt 0:00:13]} 32. Ra8 {[%emt 0:00:23]} g5 {[%emt 0:02:00]} 33. g3 {[%emt 0:00:57]} a5 {[%emt 0:02:10]} 34. c4 {[%emt 0:00:23]} Kg6 {[%emt 0:04:22]} 35. Rb8 {[%emt 0:00:03]} Rc6 {[%emt 0:00:07]} 36. Kc3 {[%emt 0:00:18]} Rd6 {[%emt 0:00:07]} 37. c5 {[%emt 0:01:06]} bxc5 {[%emt 0:00:22]} 38. Rb5 {[%emt 0:00:11]} gxf4 {[%emt 0:00:18]} 39. gxf4 {[%emt 0:00:28]} Rd4 {[%emt 0:02:11]} 40. Rxc5 {[%emt 0:00:01]} Rxf4 {[%emt 0:00:12]} 41. Rxa5 {[%emt 0:32:21]} 1/2-1/2